Cogmind - Beta 13 @@@ ROGUE MODE // 2024.04.28 @ 11:24:27 Player: adenochrome Result: Destroyed by Y-45 Defender with Heavy Assault Rifle Performance ------------- Evolutions (1) 500 Regions Visited (3) 600 Robots Destroyed (25) 125 Value Destroyed (531) 531 Prototype IDs (2) 40 Alien Tech Used (0) 0 Bonus (0) 0 TOTAL SCORE: 1796 Bonus ------- None Cogmind --------- Core Integrity 0/400 Matter 300/300 Energy 99/100 System Corruption 0% Temperature Cool (27) Movement Core (50) Location -9/Materials Parts ------- > --- POWER (1) -------- (None) > --- PROPULSION (3) --- (None) > --- UTILITY (3) ------ Signal Interpreter > --- WEAPON (2) ------- (None) > --- INVENTORY (5) ---- Flight Unit Flight Unit Small Storage Unit ECM Suite Improved EM Shotgun Peak State ------------ > --- POWER ------------ Ion Engine > --- PROPULSION ------- Flight Unit Flight Unit Flight Unit > --- UTILITY ---------- Small Storage Unit Sensor Array Signal Interpreter > --- WEAPON ----------- Heavy EM Pulse Gun Light Assault Rifle > --- INVENTORY -------- Aluminum Leg Flight Unit ECM Suite [Rating: 10] Favorites ----------- Power Light Ion Engine Engine Light Ion Engine Propulsion Flight Unit Leg Aluminum Leg Flight Unit Flight Unit Utility Small Storage Unit Device Shield Generator Storage Small Storage Unit Processor Signal Interpreter Weapon Light Assault Rifle Energy Gun EM Pulse Gun Ballistic Gun Light Assault Rifle Build | -11 -10 -10 -9 ------- Run | Yrd Mat Min Mat Slots Evolved 2 | . . . 2 Power . | . . . . Propulsion 1 | . . . 1 Utility 1 | . . . 1 Weapon . | . . . . Parts Attached 35 | 7 10 4 14 Power 5 | 1 1 2 1 Engine 5 | 1 1 2 1 Core . | . . . . Reactor . | . . . . Propulsion 14 | 2 4 2 6 Treads . | . . . . Leg 4 | 2 2 . . Wheel . | . . . . Hover . | . . . . Flight 10 | . 2 2 6 Utility 6 | 1 2 . 3 Device 4 | . 1 . 3 Storage 1 | 1 . . . Processor 1 | . 1 . . Hackware . | . . . . Protection . | . . . . Artifact . | . . . . Weapon 10 | 3 3 . 4 Energy Gun 4 | 1 1 . 2 Energy Cannon . | . . . . Ballistic Gun 6 | 2 2 . 2 Ballistic Cannon . | . . . . Launcher . | . . . . Special Weapon . | . . . . Impact Weapon . | . . . . Slashing Weapon . | . . . . Piercing Weapon . | . . . . Special Melee Weapon . | . . . . Unidentified Prototypes . | . . . . Corrupted Parts 1 | . 1 . . System Corruption 2 | . 2 . . Parts Lost 17 | . 2 2 13 Power 3 | . . 1 2 Propulsion 7 | . . 1 6 Utility 2 | . . . 2 Weapon 5 | . 2 . 3 Highest Loss Streak 4 | . 1 1 4 To Critical Strikes . | . . . . Average Slot Usage (%) 82 | . 93 98 67 Engine 9 | . 14 13 4 Leg 8 | . 21 . . Flight 17 | . 6 28 22 Device 2 | . . . 4 Storage 12 | . 14 14 9 Processor 10 | . 7 14 11 Energy Gun 5 | . 9 . 4 Ballistic Gun 15 | . 17 27 9 Naked Turns . | . . . . Heaviest Build 16 | 12 14 12 16 Greatest Support 20 | 20 20 8 12 Greatest Overweight (x) 1 | . 1 1 1 Average Overweight (x) . | . . . . Largest Inventory Capacity 8 | 8 8 8 8 Average Capacity 7 | 7 8 8 7 Most Carried 8 | 4 8 8 6 Average Carried 5 | 1 7 7 3 Final Capacity 8 | 8 8 8 5 Final Carried 8 | 4 8 7 5 Class Distribution -------------------- 56% | Scavenger-Mutant 43% | Mutant Dominant Class ---------------- Mutant | -10/Materials Scavenger-Mutant | -10/Mines Scavenger-Mutant | -9/Materials Resources | -11 -10 -10 -9 ----------- Run | Yrd Mat Min Mat Matter Collected 651 | 240 179 89 143 Remotely . | . . . . Salvage Created 713 | . 239 92 382 Parts 50 | . 24 5 21 Haulers Intercepted . | . . . . Recyclers Shooed . | . . . . Parts Field Recycled . | . . . . Retrieved Matter . | . . . . Parts Self-Destructed . | . . . . Prevented . | . . . . Kills | -11 -10 -10 -9 ------- Run | Yrd Mat Min Mat Combat Hostiles Destroyed 23 | . 11 2 10 Guns 17 | . 8 2 7 AOE 6 | . 3 . 3 Classes Destroyed 5 | . 3 . 2 Worker 1 | . . . 1 Watcher 1 | . 1 . . Swarmer 14 | . 9 . 5 Grunt 4 | . 2 2 . Sentry 5 | . . . 5 Best Kill Streak 6 | . 6 2 3 Combat Bots Only 6 | . 6 2 3 Max Kills in Single Turn 3 | . 2 1 3 Gunslinging . | . . . . Exploded 3 | . 2 . 3 Melee . | . . . . Uniques/NPCs Destroyed . | . . . . Combat | -11 -10 -10 -9 -------- Run | Yrd Mat Min Mat Hostile Shots Fired 149 | . 40 20 89 Missed 36 | . 6 6 24 Damage Taken 1466 | . 365 172 929 Core 531 | . 78 39 414 Absorbed by Shields 51 | . . . 51 Core Remaining (%) 76 | 100 . 53 . Volleys Fired 73 | . 30 11 32 Largest 2 | . 2 2 2 Hottest 65 | . 60 40 65 Shots Fired 137 | . 55 22 60 Gun 137 | . 55 22 60 Cannon . | . . . . Launcher . | . . . . Special . | . . . . Kinetic 92 | . 30 22 40 Thermal . | . . . . Explosive . | . . . . Electromagnetic 45 | . 25 . 20 Robot Hit Streak 18 | . 9 18 12 Robot Miss Streak 3 | . 3 1 3 Penetration Max . | . . . . Secondary Targets 1 | . 1 . . Max Gunslinging Chain 1 | . 1 . . Shots Hit Robots 94 | . 34 19 41 Core Hits 44 | . 15 8 21 Critical Kills . | . . . . Critical Parts Destroyed . | . . . . Critical Strikes 1 | . 1 . . Corrupt 1 | . 1 . . Melee Attacks . | . . . . Impact . | . . . . Slashing . | . . . . Piercing . | . . . . Sneak Attacks . | . . . . Combat Hostiles . | . . . . Follow-up Attacks . | . . . . Damage Inflicted 1332 | . 569 141 622 Guns 980 | . 407 141 432 Cannons . | . . . . Explosions 305 | . 158 . 147 Melee . | . . . . Ramming 47 | . 4 . 43 Kinetic 591 | . 234 141 216 Thermal 305 | . 158 . 147 Explosive . | . . . . Electromagnetic 389 | . 173 . 216 Impact . | . . . . Slashing . | . . . . Piercing . | . . . . Highest Corruption 2 | . 2 2 . Average Corruption 2 | . 2 2 . Corruption Purged . | . . . . Corruption Blocked . | . . . . Effects 6 | . 4 2 . Message Errors 2 | . 2 . . Matter Fused 1 | . 1 . . Energy Discharges 1 | . 1 . . Data Loss (minor) 1 | . . 1 . Data Loss (major) 1 | . . 1 . Overload Shots . | . . . . Overflow Damage 18 | . . . 18 Projectiles . | . . . . Explosions 18 | . . . 18 Melee . | . . . . Knockbacks . | . . . . Impact . | . . . . Kinetic . | . . . . Secondary . | . . . . Self-Inflicted Damage 163 | . 75 . 88 Shots 4 | . 2 . 2 Rammed 12 | . . . 12 Targets Rammed 13 | . 1 . 12 Kicked 1 | . 1 . . Crushed . | . . . . Highest Temperature 93 | . 36 24 93 Average Temperature 18 | . 13 6 25 Received Heat Transfer 390 | . 66 101 223 Siege Activations . | . . . . Robots Corrupted . | . . . . Combat Hostiles . | . . . . Parts Fried . | . . . . Impact Corruptions . | . . . . Robots Melted . | . . . . Combat Hostiles . | . . . . Parts Melted 1 | . 1 . . Heat Transferred 300 | . 200 . 100 Parts Sabotaged . | . . . . Parts Stolen . | . . . . Parts Stripped . | . . . . Power Chain Reactions 4 | . 2 . 2 Alert | -11 -10 -10 -9 ------- Run | Yrd Mat Min Mat Peak Influence 348 | . 152 125 348 Initial 55 | . . 55 44 Average 135 | . 114 88 188 Maximum Alert Level 1 | . . . 1 Low Security (%) 80 | 100 100 100 52 Level 1 19 | . . . 47 Level 2 . | . . . . Level 3 . | . . . . Level 4 . | . . . . Level 5 . | . . . . High Security . | . . . . Max Security . | . . . . Squads Dispatched 3 | . 2 . 1 Investigation 1 | . . . 1 Extermination . | . . . . Reinforcement 2 | . 2 . . Assault . | . . . . Garrison . | . . . . Intercept . | . . . . Searches Triggered . | . . . . Construction Impeded . | . . . . Haulers Reinforced . | . . . . Active Scanning Responses . | . . . . Cargo Convoy Interrupts . | . . . . Stealth | -11 -10 -10 -9 --------- Run | Yrd Mat Min Mat Distress Signals 3 | . 1 . 2 Communications Jammed . | . . . . Distress Signals . | . . . . Times Spotted 57 | . 15 11 31 Peak Tracking Total 10 | . 5 6 10 Tactical Retreats 7 | . . 1 6 Traps | -11 -10 -10 -9 ------- Run | Yrd Mat Min Mat Traps Triggered 2 | . 1 . 1 Indirectly . | . . . . Trap Hack Attempts . | . . . . Triggered . | . . . . Disarmed . | . . . . Reprogrammed . | . . . . Reused . | . . . . Traps Extracted . | . . . . Installed . | . . . . Triggered . | . . . . Machines | -11 -10 -10 -9 ---------- Run | Yrd Mat Min Mat Machines Disabled . | . . . . Max in Single Turn . | . . . . Machines Repaired . | . . . . Machines Dismantled . | . . . . Machines Sabotaged . | . . . . Overloaded Fab Kills . | . . . . Hacking | -11 -10 -10 -9 --------- Run | Yrd Mat Min Mat Machines Accessed 8 | . 5 1 2 Terminals 7 | . 5 . 2 Fabricators . | . . . . Repair Stations . | . . . . Recycling Units . | . . . . Scanalyzers . | . . . . Garrison Access . | . . . . Total Hacks 22 | . 16 1 5 Successful 10 | . 8 1 1 Failed 12 | . 8 . 4 Catastrophic 2 | . 1 . 1 Database Lockouts . | . . . . Manual 7 | . 6 . 1 Terminals 21 | . 16 . 5 Fabricators . | . . . . Repair Stations . | . . . . Recycling Units . | . . . . Scanalyzers . | . . . . Garrison Access . | . . . . Terminal Hacks 10 | . 8 1 1 Record 1 | . 1 . . Robot Analysis 2 | . 2 . . Prototype ID Bank 1 | . 1 . . Open Door 1 | . . 1 . Branch Access Points 1 | . 1 . . Investigation Status 1 | . 1 . . Recall Investigation 1 | . 1 . . Registered Components 1 | . 1 . . Zone Layout 1 | . . . 1 Fabricator Hacks . | . . . . Repair Station Hacks . | . . . . Recycling Unit Hacks . | . . . . Scanalyzer . | . . . . Garrison Access Hacks . | . . . . Unauthorized Hacks . | . . . . Terminals . | . . . . Fabricators . | . . . . Repair Stations . | . . . . Recycling Units . | . . . . Scanalyzers . | . . . . Garrison Access . | . . . . Data Cores Recovered . | . . . . Used . | . . . . Hacking Detections 7 | . 5 . 2 Full Trace Events 2 | . 2 . . Feedback Events . | . . . . Feedback Blocked . | . . . . Robot Schematics Acquired . | . . . . Robots Built . | . . . . Authchips . | . . . . Time . | . . . . Total Robot Build Rating . | . . . . Part Schematics Acquired . | . . . . Parts Built . | . . . . Authchips . | . . . . Time . | . . . . Total Part Build Rating . | . . . . Parts Repaired . | . . . . Time . | . . . . Parts Recycled . | . . . . Recycled Matter . | . . . . Retrieved Matter . | . . . . Retrieved Components . | . . . . Parts Scanalyzed . | . . . . Part Schematics Acquired . | . . . . Parts Damaged . | . . . . Bothacking | -11 -10 -10 -9 ------------ Run | Yrd Mat Min Mat Used RIF Installer . | . . . . Robots Hacked . | . . . . Non-combat . | . . . . Combat . | . . . . Robot Hacks Applied . | . . . . Relay Couplers Released . | . . . . Fabnet Peak Effective % . | . . . . Robots Rewired . | . . . . Allies Hacked . | . . . . Hacks Repelled . | . . . . Allies | -11 -10 -10 -9 -------- Run | Yrd Mat Min Mat Total Allies . | . . . . Largest Group . | . . . . Highest-Rated Group . | . . . . Highest-Rated Ally . | . . . . Total Orders . | . . . . Ally Attacks . | . . . . Total Damage . | . . . . Kills . | . . . . Allies Corrupted . | . . . . Allies Melted . | . . . . Intel | -11 -10 -10 -9 ------- Run | Yrd Mat Min Mat Robot Analysis Total 2 | . 2 . . Derelict Logs Recovered 2 | . . 2 . Drone Launches . | . . . . Drone Recoveries . | . . . . Exploration | -11 -10 -10 -9 ------------- Run | Yrd Mat Min Mat Turns Passed 1622 | 75 592 288 667 Spaces Moved 1218 | 53 374 228 563 Core 119 | 4 . . 115 Treads . | . . . . Legs 301 | 49 252 . . Wheels . | . . . . Hover . | . . . . Flight 798 | . 122 228 448 Fastest Speed 34 | 50 117 37 34 Average Speed 100 | 114 119 110 82 Slowest Speed 120 | 120 120 117 120 Overloaded Moves . | . . . . Propulsion Burnouts . | . . . . Robots Hopped 3 | . . 1 2 Cave-ins Triggered . | . . . . Exploration Rate (%) 43 | 4 58 54 56 Regions Visited 3 Branch Regions 1 Pre-discovered Areas . | . . . . Known Exits Taken 2 | . 1 1 . Unknown Exits Taken 1 | 1 . . . Scrap Searched 1 | . . 1 . Spaces Dug . | . . . . Terrain Destroyed 12 | . 5 . 7 Melee . | . . . . Projectile . | . . . . AOE 12 | . 5 . 7 Terrain Rammed . | . . . . Walls Destroyed . | . . . . Machines Disabled . | . . . . Actions | -11 -10 -10 -9 --------- Run | Yrd Mat Min Mat Total 1487 | 63 466 245 713 Wait 118 | . 34 . 84 Move 1209 | 52 373 225 559 Hop 3 | . . 1 2 Pick Up 19 | 4 10 1 4 Fast Attach 19 | 6 5 1 7 Attach 12 | . 3 2 7 Detach 3 | . . . 3 Swap 4 | 1 2 1 . Drop 14 | . 8 3 3 Fire 73 | . 30 11 32 Melee . | . . . . Ram 12 | . . . 12 Kick 1 | . 1 . . Crush . | . . . . Escape Stasis . | . . . . Rewire . | . . . . Trap . | . . . . Miscellaneous . | . . . . Route ------- -11/Scrapyard -10/Materials (discovered 4 exits: *Mat x2 / *Min x2) -10/Mines -9/Materials (discovered 1 exit: *Mat) History --------- Turn | Location | Event 5 | -11/Scrapyard | Discovered new exit (range 16) 76 | -11/Scrapyard | Entered Materials 202 | -10/Materials | Discovered new exit (range 16) 327 | -10/Materials | Build established: Mutant 359 | -10/Materials | Identified exit to Materials 472 | -10/Materials | Discovered exit to Materials (range 12) 585 | -10/Materials | Identified exit to Mines 668 | -10/Materials | Entered Mines 733 | -10/Mines | Learned Materials garrison access intel 813 | -10/Mines | Build established: Scavenger-Mutant 877 | -10/Mines | Met a Derelict who couldn't figure out how to use a Trap Extractor 921 | -10/Mines | Assembled infested the area 926 | -10/Mines | Assisted by a Guerilla fighting off Assembled 934 | -10/Mines | Learned Materials stockpile data 952 | -10/Mines | Discovered exit to Materials (range 10) 956 | -10/Mines | Entered Materials 956 | -9/Materials | Evolved 2 slots: Propulsion x1, Utility x1 1017 | -9/Materials | Lost 4 parts (1p2n1w) 1310 | -9/Materials | Lost 4 parts (1p2n1w) 1519 | -9/Materials | Discovered new exit (range 7) 1543 | -9/Materials | Identified exit to Materials 1568 | -9/Materials | Core integrity fell below 50% 1594 | -9/Materials | Core integrity fell below 20% 1623 | -9/Materials | Destroyed by Y-45 Defender with Heavy Assault Rifle Last Messages --------------- 01519_ EXIT=FOUND >>Layout(Zone) Retrieving Zone 7F layout... Downloaded map data. 01521_ Triggered Alarm Trap. 01521_ An alarm sounds. 01521_ ALERT: Alarm triggered, dispatching investigation squad. 01543_ EXIT=IDENTIFIED: MATERIALS 01548_ Dropped Lgt. Armor Plating. 01561_ Acquired Flight Unit. 01567_ Dropped Aluminum Leg. 01567_ Acquired Prototype Energy Gun. 01585_ Slammed into G-34 Mercenary. 01586_ Destabilizing: System interference. 01586_ Signal Interpreter temporarily disabled. 01587_ Slammed into G-34 Mercenary. 01593_ Destabilizing: Core damaged (-12). 01596_ Slammed into G-34 Mercenary. 01599_ Slammed into A-02 Transporter. 01623_ Critical hit (Burn: +37). Map ----- +----------------------------------------------------+ | ???????########????????????????????????????? | | ???????# #????????????????????????????? | | #??????# #????????####????????????????? | | ######## #???????#"""#????????????????? | | / """ #???????#"T"#????????????????? | | ###### # """ #?????###" "############?????? | | #????# # """ #?????# ! ####### | | ?????# #####+###????# # # | | ?????# #?# #????# """ # # | | ###### ### ###### """ # # | | # """ + # | | # ###### ###### """ # # | | #????# #????# ### ## # | | # ########+######## #?# ## # | | # # + #?# ######## | | # # "" ######## #?# #??????? | | # # """ """ #??????# ############/####???? | | # """ S" #??????# ########## #???? | | + """ #??????# #? ## #???? | | # """ #??????# #? ##""" #???? | | # # #??????# #?? "" ##""" ] #???? | | # # #??????# #?? Y" ##""" #???? | | # ###########??????# #??? "" ## % #???? | | # #????????????????# #??? ?####/###???? | | # ################## #####+###### #????? | | # # g Yk Y %%%%@%k% % #????? | | # # ##############%###### #????? | | # # #????????????# #????#####????? | | # # #????????????# #?????????????? | | # # #????????????# #?????????????? | | # + #????????????# #?????????????? | | # # #????????????# #?????????????? | | # # #????????????# #?????????????? | | # ###########????????????# #?????????????? | | #????????????????????? /?????????????? | | #?????????????????????# #?????????????? | | #?????????????????????? ??????????????? | | #?????????????????????? ??????????????? | | #?????????????????????? ??????????????? | | # ##?????????????????????? ??????????????? | | # #??????????????????????? ??????????????? | | # #??????????????????????? ??????????????? | | # +??????????????????????????????????????? | | # #??????????????????????????????????????? | | # #??????????????????????????????????????? | | # #??????????????????????????????????????? | | # #??????????????????????????????????????? | | # #??????????????????????????????????????? | | # #??????????????????????????????????????? | | # #??????????????????????????????????????? | +----------------------------------------------------+ Best States ------------- Heat Dissipation 28 Energy Generation 10 Energy Capacity 250 Matter Stores 300 Matter Capacity 300 Sight Range 16 Robot Scan Range 14 Terrain Scan Density 10 ECM Strength 1 Evasion (%) 63 Item Schematics ----------------- None Robot Schematics ------------------ None Fabricated ------------ Nothing Alien Tech Used ----------------- None Achievements -------------- None Challenges ------------ None Game ------ Seed QuantumPoweredWeb Manual? 0 Play Time 00:27:37 Cumulative 16.3 hours Start 2024.04.28 @ 09:54:44 End 2024.04.28 @ 11:24:27 Sessions 7 Manual Loads 0 Difficulty Rogue Special Mode None Game No. 24 Rogue 24 Adventurer 0 Explorer 0 Win Type - Total 0 Types 0/0/0/0/0/0/0/0/0 Lore% 21 Gallery% 21 Achievement% 23 Wizard Run 0 Options --------- Layout 0 ASCII 0 Keyboard 0 Movement Mouse Keybinds 0 Fullscreen 1 Font 18/SmallcapsGlow Map View 76x50 Zoom Use 0% Tactical HUD 1 Map Filters NONE Filters NONE Steam 1 RUN: 3a74fd40-b1b5-4f87-91e4-7f352e11942f